Workbook

Sheet Sheet1
A1: 736 Elmwood Ave, Buffalo NY 14222
A3: RENT | E3: ACTUALS | H3: POTENTIAL
A4: Commercial | D4: Mo | E4: Annual | G4: Mo | H4: Annual | J4: Term Expiration
B5: Little Salmon | D5: 2400 | E5: =D5*12 -> 28800 | G5: 3500 | H5: =G5*12 -> 42000 | J5: 2029-08-31
B6: Watsons Chocolates | D6: 1575 | E6: =D6*12 -> 18900 | G6: 2000 | H6: 24000 | J6: 2027-06-30
A7: Residential
B8: Apt A | D8: 1100 | E8: =D8*12 -> 13200 | G8: 1300 | H8: 15600 | J8: M2M
B9: Apt B | D9: 950 | E9: =D9*12 -> 11400 | G9: 1150 | H9: 13800 | J9: 2026-06-30
B10: Apt C | D10: 950 | E10: 11400 | G10: 1150 | H10: 13800 | J10: M2M
B11: Apt D | D11: 1200 | E11: 14400 | G11: 1300 | H11: 15600 | J11: 2026-08-31
C13: Gross Rev | D13: =SUM(D5:D11) -> 8175 | E13: =D13*12 -> 98100 | H13: =SUM(H5:H12) -> 124800
C14: Vacancy | E14: =E13*0.05 -> 4905 | H14: =H13*0.05 -> 6240
C15: Eff Gross | E15: =E13-E14 -> 93195 | H15: =H13-H14 -> 118560
A17: Expenses | C17: Tax | E17: 11875 | H17: 11875
C18: Ins | E18: 3010 | H18: 3010
C19: Main | E19: 6930 | H19: 6930
C20: Utilities | E20: 2923 | H20: 2923
C21: Reserves | E21: =0.05*E13 -> 4905 | H21: =H14 -> 6240
C22: PM | E22: =0.05*E13 -> 4905 | H22: =H21 -> 6240
C23: Total OPEX | E23: =SUM(E17:E22) -> 34548 | F23: =E23/E13 -> 0.3521712538 | H23: =SUM(H17:H22) -> 37218 | I23: =H23/H13 -> 0.2982211538
E25: =E15-E23 -> 58647 | H25: =H15-H23 -> 81342
D27: =$E$25/E27 -> 0.05331545455 | E27: 1100000 | G27: =$H$25/E27 -> 0.07394727273 | H27: 1100000
D28: =$E$25/E28 -> 0.05585428571 | E28: 1050000 | G28: =$H$25/E28 -> 0.07746857143 | H28: 1050000
D29: =$E$25/E29 -> 0.058647 | E29: 1000000 | G29: =$H$25/E29 -> 0.081342 | H29: 1000000
